[Event "*** SCC Grand Prix: Titled Tuesday Blitz"]
[Site "Chess.com"]
[Date "2020.07.07"]
[Round "5"]
[White "Grandelicious"]
[Black "MrTattaglia"]
[Result "1/2-1/2"]
[WhiteElo "2793"]
[BlackElo "2930"]
[TimeControl "180+1"]
[EndTime "10:56:43 PDT"]
[Termination "Game drawn - insufficient material"]

1. d4 {[%clk 0:03:00.9]} 1... Nf6 {[%clk 0:02:59.3]} 2. c4 {[%clk 0:02:55.1]}
2... e6 {[%clk 0:02:59.3]} 3. Nc3 {[%clk 0:02:54.9]} 3... d5 {[%clk 0:02:57.4]}
4. cxd5 {[%clk 0:02:47.2]} 4... exd5 {[%clk 0:02:58.3]} 5. Bg5 {[%clk
0:02:46.8]} 5... Nbd7 {[%clk 0:02:58.2]} 6. e3 {[%clk 0:02:46.1]} 6... Be7
{[%clk 0:02:56.9]} 7. Bd3 {[%clk 0:02:43.5]} 7... c6 {[%clk 0:02:57]} 8. Nge2
{[%clk 0:02:34.8]} 8... h6 {[%clk 0:02:57.2]} 9. Bh4 {[%clk 0:02:33.7]} 9... Nh5
{[%clk 0:02:57.6]} 10. Bxe7 {[%clk 0:02:20.8]} 10... Qxe7 {[%clk 0:02:58.5]} 11.
O-O {[%clk 0:02:14.5]} 11... O-O {[%clk 0:02:56]} 12. Rb1 {[%clk 0:02:01.6]}
12... a5 {[%clk 0:02:54.5]} 13. a3 {[%clk 0:02:01.1]} 13... Re8 {[%clk
0:02:45.2]} 14. Qd2 {[%clk 0:01:55.6]} 14... Qg5 {[%clk 0:02:38.8]} 15. b4
{[%clk 0:01:46.6]} 15... axb4 {[%clk 0:02:38]} 16. axb4 {[%clk 0:01:47.5]} 16...
b5 {[%clk 0:02:38.3]} 17. Rbe1 {[%clk 0:01:30.9]} 17... Nb6 {[%clk 0:02:36.5]}
18. f4 {[%clk 0:01:14.1]} 18... Qe7 {[%clk 0:02:31.4]} 19. e4 {[%clk 0:00:43.1]}
19... dxe4 {[%clk 0:01:40.5]} 20. Nxe4 {[%clk 0:00:44]} 20... Nf6 {[%clk
0:01:40.3]} 21. N2g3 {[%clk 0:00:39.5]} 21... Bd7 {[%clk 0:01:40.6]} 22. Nxf6+
{[%clk 0:00:34]} 22... Qxf6 {[%clk 0:01:40.5]} 23. Re5 {[%clk 0:00:34.9]} 23...
Nd5 {[%clk 0:01:35.8]} 24. Ne4 {[%clk 0:00:28.8]} 24... Qd8 {[%clk 0:01:35.7]}
25. Nc5 {[%clk 0:00:26.5]} 25... Nf6 {[%clk 0:01:29.6]} 26. Rfe1 {[%clk
0:00:21.2]} 26... Be6 {[%clk 0:01:19.7]} 27. Bb1 {[%clk 0:00:17.8]} 27... Bd5
{[%clk 0:01:13.4]} 28. h3 {[%clk 0:00:16.8]} 28... Ra3 {[%clk 0:00:44]} 29. Qf2
{[%clk 0:00:14.4]} 29... Rxe5 {[%clk 0:00:18.3]} 30. fxe5 {[%clk 0:00:09.7]}
30... Nd7 {[%clk 0:00:18.6]} 31. e6 {[%clk 0:00:09]} 31... fxe6 {[%clk
0:00:14.9]} 32. Nxe6 {[%clk 0:00:09.9]} 32... Qf6 {[%clk 0:00:07.1]} 33. Nf4
{[%clk 0:00:09.8]} 33... Bf7 {[%clk 0:00:05.2]} 34. Be4 {[%clk 0:00:07.4]} 34...
Rb3 {[%clk 0:00:03.2]} 35. d5 {[%clk 0:00:07.9]} 35... cxd5 {[%clk 0:00:01.5]}
36. Bxd5 {[%clk 0:00:08.6]} 36... Bxd5 {[%clk 0:00:01.5]} 37. Nxd5 {[%clk
0:00:09.5]} 37... Qxf2+ {[%clk 0:00:02.3]} 38. Kxf2 {[%clk 0:00:10.1]} 38... Nf6
{[%clk 0:00:02.7]} 39. Nxf6+ {[%clk 0:00:09.5]} 39... gxf6 {[%clk 0:00:03.6]}
40. Re7 {[%clk 0:00:09.7]} 40... Rxb4 {[%clk 0:00:03.1]} 41. Rb7 {[%clk
0:00:09.6]} 41... h5 {[%clk 0:00:02.9]} 42. Kg3 {[%clk 0:00:07.2]} 42... h4+
{[%clk 0:00:03]} 43. Kf3 {[%clk 0:00:07.6]} 43... Kf8 {[%clk 0:00:01.6]} 44. Ke3
{[%clk 0:00:05.4]} 44... Kg8 {[%clk 0:00:01.8]} 45. Kf3 {[%clk 0:00:05.8]} 45...
Rb2 {[%clk 0:00:02.1]} 46. Kg4 {[%clk 0:00:05.1]} 46... Rxg2+ {[%clk 0:00:01.9]}
47. Kxh4 {[%clk 0:00:05.6]} 47... Rg5 {[%clk 0:00:02.4]} 48. Rc7 {[%clk
0:00:03.5]} 48... Kf8 {[%clk 0:00:02.3]} 49. Rb7 {[%clk 0:00:03.8]} 49... Kg8
{[%clk 0:00:02.4]} 50. Rc7 {[%clk 0:00:04.1]} 50... Kh8 {[%clk 0:00:02.6]} 51.
Rb7 {[%clk 0:00:04.3]} 51... Rg6 {[%clk 0:00:02.3]} 52. Kh5 {[%clk 0:00:03.9]}
52... Rg7 {[%clk 0:00:02.1]} 53. Rxb5 {[%clk 0:00:03.2]} 53... Rg5+ {[%clk
0:00:02.3]} 54. Rxg5 {[%clk 0:00:02.6]} 54... fxg5 {[%clk 0:00:03.2]} 55. Kxg5
{[%clk 0:00:03.1]} 55... Kg8 {[%clk 0:00:04.1]} 56. h4 {[%clk 0:00:04]} 56...
Kh8 {[%clk 0:00:05]} 57. h5 {[%clk 0:00:04.9]} 57... Kg8 {[%clk 0:00:05.9]} 58.
h6 {[%clk 0:00:05.8]} 58... Kh8 {[%clk 0:00:06.8]} 59. h7 {[%clk 0:00:06.7]}
59... Kxh7 {[%clk 0:00:06.6]} 1/2-1/2

[Event "*** SCC Grand Prix: Titled Tuesday Blitz"]
[Site "Chess.com"]
[Date "2020.07.07"]
[Round "5"]
[White "olksuna"]
[Black "WIDBIFS"]
[Result "1-0"]
[WhiteElo "2624"]
[BlackElo "2790"]
[TimeControl "180+1"]
[EndTime "10:56:43 PDT"]
[Termination "olksuna won by resignation"]

1. Nf3 {[%clk 0:03:00.9]} 1... Nf6 {[%clk 0:02:58.9]} 2. g3 {[%clk 0:03:00.9]}
2... g6 {[%clk 0:02:58.9]} 3. b4 {[%clk 0:02:59.9]} 3... Bg7 {[%clk 0:02:59.2]}
4. Bb2 {[%clk 0:03:00.6]} 4... O-O {[%clk 0:03:00.1]} 5. d3 {[%clk 0:03:00.7]}
5... d5 {[%clk 0:03:00.5]} 6. Bg2 {[%clk 0:02:59.4]} 6... c6 {[%clk 0:03:00.8]}
7. O-O {[%clk 0:02:59.3]} 7... Bg4 {[%clk 0:02:59.5]} 8. Nbd2 {[%clk 0:02:58.3]}
8... Nbd7 {[%clk 0:02:59.1]} 9. c4 {[%clk 0:02:55.1]} 9... Bxf3 {[%clk
0:02:51.1]} 10. Nxf3 {[%clk 0:02:53.2]} 10... e6 {[%clk 0:02:51.7]} 11. Qc2
{[%clk 0:02:46.9]} 11... a6 {[%clk 0:02:50.4]} 12. a4 {[%clk 0:02:43.6]} 12...
Qe7 {[%clk 0:02:45.2]} 13. Qb3 {[%clk 0:02:36]} 13... dxc4 {[%clk 0:02:23.2]}
14. Qxc4 {[%clk 0:02:30.9]} 14... Nd5 {[%clk 0:02:22.9]} 15. Bxg7 {[%clk
0:02:25.3]} 15... Kxg7 {[%clk 0:02:23.8]} 16. Rab1 {[%clk 0:02:17.3]} 16... Qf6
{[%clk 0:02:13.5]} 17. Rfc1 {[%clk 0:02:13.9]} 17... Rac8 {[%clk 0:02:02.7]} 18.
Nd2 {[%clk 0:02:09.2]} 18... Ne5 {[%clk 0:02:00.4]} 19. Qb3 {[%clk 0:02:04.9]}
19... Nd7 {[%clk 0:01:40]} 20. Ne4 {[%clk 0:01:57.2]} 20... Qe7 {[%clk 0:01:40]}
21. Qb2+ {[%clk 0:01:54.9]} 21... N7f6 {[%clk 0:01:36.3]} 22. h4 {[%clk
0:01:34.7]} 22... Kg8 {[%clk 0:01:36]} 23. Nxf6+ {[%clk 0:01:31.3]} 23... Nxf6
{[%clk 0:01:34.6]} 24. b5 {[%clk 0:01:31.5]} 24... axb5 {[%clk 0:01:05.5]} 25.
axb5 {[%clk 0:01:32.4]} 25... c5 {[%clk 0:01:06.2]} 26. b6 {[%clk 0:01:29.7]}
26... e5 {[%clk 0:01:05.9]} 27. Rc4 {[%clk 0:01:22.5]} 27... Rfd8 {[%clk
0:01:00.4]} 28. Rbc1 {[%clk 0:01:22]} 28... Rd4 {[%clk 0:00:49.9]} 29. Qa3
{[%clk 0:01:19.3]} 29... Rxc4 {[%clk 0:00:41.6]} 30. Rxc4 {[%clk 0:01:20.2]}
30... e4 {[%clk 0:00:27.3]} 31. Bxe4 {[%clk 0:01:08.4]} 31... Nxe4 {[%clk
0:00:24.6]} 32. Rxe4 {[%clk 0:01:09.3]} 32... Qd6 {[%clk 0:00:21.5]} 33. Qa7
{[%clk 0:00:45]} 33... Qd5 {[%clk 0:00:14.8]} 34. Qa4 {[%clk 0:00:31.1]} 34...
Kg7 {[%clk 0:00:12]} 35. Qa1+ {[%clk 0:00:29.4]} 35... Kg8 {[%clk 0:00:11.6]}
36. Qf6 {[%clk 0:00:27.2]} 36... Qc6 {[%clk 0:00:08]} 37. Qxc6 {[%clk
0:00:18.3]} 37... Rxc6 {[%clk 0:00:08.9]} 38. Rc4 {[%clk 0:00:18.9]} 38... Rxb6
{[%clk 0:00:08.2]} 39. Rxc5 {[%clk 0:00:19.2]} 39... Rb2 {[%clk 0:00:08.4]} 40.
e3 {[%clk 0:00:19.4]} 40... h5 {[%clk 0:00:08.4]} 41. Rc7 {[%clk 0:00:18.6]}
41... Kf8 {[%clk 0:00:08.2]} 42. d4 {[%clk 0:00:18.5]} 42... Ke8 {[%clk
0:00:07.7]} 43. Kg2 {[%clk 0:00:18.7]} 43... b5 {[%clk 0:00:08]} 44. Rb7 {[%clk
0:00:18.4]} 44... b4 {[%clk 0:00:08.3]} 45. Kf3 {[%clk 0:00:18.3]} 45... Rb1
{[%clk 0:00:07.9]} 46. d5 {[%clk 0:00:18.2]} 46... b3 {[%clk 0:00:07.2]} 47. e4
{[%clk 0:00:18.7]} 47... Rb2 {[%clk 0:00:06]} 48. Ke3 {[%clk 0:00:17.8]} 48...
Rb1 {[%clk 0:00:06]} 49. Kf4 {[%clk 0:00:16.2]} 49... Rb2 {[%clk 0:00:05.6]} 50.
f3 {[%clk 0:00:16.2]} 50... Rb1 {[%clk 0:00:06.2]} 51. Ke5 {[%clk 0:00:15.9]}
51... Kf8 {[%clk 0:00:05.7]} 52. Kf6 {[%clk 0:00:14]} 52... Ke8 {[%clk
0:00:06.2]} 53. Rb8+ {[%clk 0:00:12.9]} 53... Kd7 {[%clk 0:00:05.5]} 54. Kxf7
{[%clk 0:00:13.3]} 54... Rf1 {[%clk 0:00:03.8]} 55. Rxb3 {[%clk 0:00:12.1]}
55... Kd6 {[%clk 0:00:02.9]} 56. Kxg6 {[%clk 0:00:10.2]} 56... Ke5 {[%clk
0:00:02.4]} 57. Kxh5 {[%clk 0:00:10.3]} 57... Rxf3 {[%clk 0:00:03]} 58. Rxf3
{[%clk 0:00:09.7]} 1-0

[Event "*** SCC Grand Prix: Titled Tuesday Blitz"]
[Site "Chess.com"]
[Date "2020.07.07"]
[Round "5"]
[White "imdarealist"]
[Black "viktorskliarov"]
[Result "1/2-1/2"]
[WhiteElo "2343"]
[BlackElo "2509"]
[TimeControl "180+1"]
[EndTime "10:56:43 PDT"]
[Termination "Game drawn - insufficient material"]

1. d4 {[%clk 0:03:00.9]} 1... Nf6 {[%clk 0:02:53.5]} 2. Bf4 {[%clk 0:02:57.5]}
2... g6 {[%clk 0:02:52.6]} 3. e3 {[%clk 0:02:57.8]} 3... Bg7 {[%clk 0:02:53.1]}
4. Nf3 {[%clk 0:02:58.4]} 4... O-O {[%clk 0:02:53.6]} 5. h3 {[%clk 0:02:59]}
5... d6 {[%clk 0:02:53.9]} 6. Be2 {[%clk 0:02:59.5]} 6... c5 {[%clk 0:02:54.3]}
7. c3 {[%clk 0:02:52.4]} 7... Qb6 {[%clk 0:02:53.8]} 8. Qb3 {[%clk 0:02:52.2]}
8... Be6 {[%clk 0:02:53.3]} 9. Qxb6 {[%clk 0:02:49.3]} 9... axb6 {[%clk
0:02:54.2]} 10. a3 {[%clk 0:02:44.5]} 10... Nd5 {[%clk 0:02:53.4]} 11. Bg3
{[%clk 0:02:40.3]} 11... cxd4 {[%clk 0:02:53.4]} 12. Nxd4 {[%clk 0:02:34.4]}
12... Bd7 {[%clk 0:02:50.1]} 13. Nd2 {[%clk 0:02:29.1]} 13... Nc6 {[%clk
0:02:37.3]} 14. O-O {[%clk 0:02:19.3]} 14... Nxd4 {[%clk 0:01:49.6]} 15. exd4
{[%clk 0:02:18.9]} 15... Bh6 {[%clk 0:01:49.3]} 16. Nc4 {[%clk 0:02:08]} 16...
b5 {[%clk 0:01:44.1]} 17. Bf3 {[%clk 0:02:08.3]} 17... bxc4 {[%clk 0:00:55.8]}
18. Bxd5 {[%clk 0:02:08]} 18... Ra4 {[%clk 0:00:56.4]} 19. Rfe1 {[%clk 0:01:38]}
19... Bg5 {[%clk 0:00:54.8]} 20. Re2 {[%clk 0:01:20.3]} 20... Bc6 {[%clk
0:00:51.1]} 21. Be4 {[%clk 0:01:01.6]} 21... Bxe4 {[%clk 0:00:41.3]} 22. Rxe4
{[%clk 0:01:02.5]} 22... f5 {[%clk 0:00:41.7]} 23. Re6 {[%clk 0:00:59.2]} 23...
Kf7 {[%clk 0:00:25.2]} 24. Rae1 {[%clk 0:00:46.6]} 24... Rfa8 {[%clk 0:00:25.2]}
25. f4 {[%clk 0:00:24.9]} 25... Bf6 {[%clk 0:00:25.1]} 26. R6e2 {[%clk
0:00:22.7]} 26... R8a6 {[%clk 0:00:24.5]} 27. Bf2 {[%clk 0:00:21.6]} 27... Rb6
{[%clk 0:00:23.5]} 28. Rd2 {[%clk 0:00:17.7]} 28... Rb3 {[%clk 0:00:21.1]} 29.
Ree2 {[%clk 0:00:16.8]} 29... Ra5 {[%clk 0:00:19.5]} 30. g3 {[%clk 0:00:16.7]}
30... Rab5 {[%clk 0:00:19.2]} 31. Kg2 {[%clk 0:00:17.1]} 31... Ke8 {[%clk
0:00:19.4]} 32. Kf3 {[%clk 0:00:16.8]} 32... Kd7 {[%clk 0:00:19.7]} 33. g4
{[%clk 0:00:17.2]} 33... h5 {[%clk 0:00:09.4]} 34. gxh5 {[%clk 0:00:12.9]} 34...
gxh5 {[%clk 0:00:09.1]} 35. Be3 {[%clk 0:00:12.9]} 35... Kc6 {[%clk 0:00:09]}
36. Rg2 {[%clk 0:00:12.4]} 36... Kd5 {[%clk 0:00:08.9]} 37. Rde2 {[%clk
0:00:11.8]} 37... h4 {[%clk 0:00:08.6]} 38. Bc1 {[%clk 0:00:10.8]} 38... e5
{[%clk 0:00:05.9]} 39. dxe5 {[%clk 0:00:08.9]} 39... dxe5 {[%clk 0:00:06.8]} 40.
fxe5 {[%clk 0:00:08.9]} 40... Bxe5 {[%clk 0:00:07.2]} 41. Rg5 {[%clk 0:00:08.7]}
41... Bxc3 {[%clk 0:00:04.2]} 42. bxc3 {[%clk 0:00:08.1]} 42... Rxc3+ {[%clk
0:00:04.2]} 43. Kf2 {[%clk 0:00:08.6]} 43... Rxc1 {[%clk 0:00:04]} 44. Rxf5+
{[%clk 0:00:08.3]} 44... Kc6 {[%clk 0:00:03.7]} 45. Re6+ {[%clk 0:00:08.8]}
45... Kd7 {[%clk 0:00:03.9]} 46. Rxb5 {[%clk 0:00:08.6]} 46... Kxe6 {[%clk
0:00:04.2]} 47. Rxb7 {[%clk 0:00:08.9]} 47... Rc3 {[%clk 0:00:04.6]} 48. Rb4
{[%clk 0:00:08.2]} 48... Rxa3 {[%clk 0:00:04.3]} 49. Rxc4 {[%clk 0:00:07.8]}
49... Rxh3 {[%clk 0:00:04.9]} 50. Kg2 {[%clk 0:00:07.6]} 50... Rg3+ {[%clk
0:00:03.9]} 51. Kh2 {[%clk 0:00:07.8]} 51... Rg5 {[%clk 0:00:04.2]} 52. Rxh4
{[%clk 0:00:07.5]} 52... Kf5 {[%clk 0:00:04.5]} 53. Rh3 {[%clk 0:00:07.4]} 53...
Kg6 {[%clk 0:00:04.6]} 54. Rc3 {[%clk 0:00:07.4]} 54... Rh5+ {[%clk 0:00:04.8]}
55. Rh3 {[%clk 0:00:07.2]} 55... Rg5 {[%clk 0:00:05.7]} 56. Rg3 {[%clk
0:00:07.3]} 56... Rxg3 {[%clk 0:00:05.5]} 57. Kxg3 {[%clk 0:00:06.3]} 1/2-1/2

[Event "*** SCC Grand Prix: Titled Tuesday Blitz"]
[Site "Chess.com"]
[Date "2020.07.07"]
[Round "5"]
[White "Parkas"]
[Black "Ermito2020"]
[Result "1-0"]
[WhiteElo "2347"]
[BlackElo "2445"]
[TimeControl "180+1"]
[EndTime "10:56:45 PDT"]
[Termination "Parkas won by checkmate"]

1. d4 {[%clk 0:03:00.9]} 1... d5 {[%clk 0:02:58.6]} 2. Nc3 {[%clk 0:03:01.2]}
2... Nf6 {[%clk 0:02:57.6]} 3. Bf4 {[%clk 0:03:01.4]} 3... g6 {[%clk 0:02:54.2]}
4. e3 {[%clk 0:03:00.5]} 4... Bg7 {[%clk 0:02:54.1]} 5. h4 {[%clk 0:03:00.6]}
5... h6 {[%clk 0:02:46]} 6. Nf3 {[%clk 0:02:58.9]} 6... c5 {[%clk 0:02:44.7]} 7.
Nb5 {[%clk 0:02:31.5]} 7... Na6 {[%clk 0:02:43.2]} 8. c3 {[%clk 0:02:28.6]} 8...
Bg4 {[%clk 0:02:39.7]} 9. Be2 {[%clk 0:02:16.8]} 9... Ne4 {[%clk 0:02:39.1]} 10.
Ne5 {[%clk 0:02:05.9]} 10... Bxe2 {[%clk 0:02:37.8]} 11. Qxe2 {[%clk 0:02:05.9]}
11... O-O {[%clk 0:02:26.5]} 12. f3 {[%clk 0:02:01.5]} 12... Nd6 {[%clk
0:02:21.8]} 13. a4 {[%clk 0:01:35.4]} 13... Nxb5 {[%clk 0:02:10.8]} 14. axb5
{[%clk 0:01:34.2]} 14... Nc7 {[%clk 0:02:09.9]} 15. h5 {[%clk 0:01:25]} 15... g5
{[%clk 0:02:09.5]} 16. Bg3 {[%clk 0:01:22.8]} 16... Ne6 {[%clk 0:02:07.8]} 17.
O-O {[%clk 0:01:20.4]} 17... c4 {[%clk 0:01:43.4]} 18. f4 {[%clk 0:01:17.5]}
18... f5 {[%clk 0:01:24.7]} 19. b3 {[%clk 0:00:52.3]} 19... cxb3 {[%clk
0:01:21.3]} 20. Qb2 {[%clk 0:00:52.3]} 20... Bxe5 {[%clk 0:01:19.5]} 21. fxe5
{[%clk 0:00:51.4]} 21... Ng7 {[%clk 0:01:14.9]} 22. Qxb3 {[%clk 0:00:43.4]}
22... Nxh5 {[%clk 0:01:14.5]} 23. Bh2 {[%clk 0:00:41.2]} 23... e6 {[%clk
0:01:13.9]} 24. c4 {[%clk 0:00:39.1]} 24... g4 {[%clk 0:01:12.9]} 25. cxd5
{[%clk 0:00:38.4]} 25... g3 {[%clk 0:01:12.8]} 26. dxe6 {[%clk 0:00:37.4]} 26...
gxh2+ {[%clk 0:01:12.2]} 27. Kxh2 {[%clk 0:00:38.3]} 27... Qh4+ {[%clk
0:01:11.7]} 28. Kg1 {[%clk 0:00:38.8]} 28... Kh8 {[%clk 0:01:08]} 29. Rf3 {[%clk
0:00:37.1]} 29... Rg8 {[%clk 0:01:06.7]} 30. Ra2 {[%clk 0:00:29.3]} 30... Ng3
{[%clk 0:01:01.6]} 31. Kf2 {[%clk 0:00:17]} 31... Ne4+ {[%clk 0:00:47.5]} 32.
Ke2 {[%clk 0:00:15.1]} 32... Rxg2+ {[%clk 0:00:45.7]} 33. Kd3 {[%clk 0:00:15.6]}
33... Nc5+ {[%clk 0:00:23.4]} 34. dxc5 {[%clk 0:00:14.3]} 34... Qe4+ {[%clk
0:00:22.9]} 35. Kc3 {[%clk 0:00:12.8]} 35... Rxa2 {[%clk 0:00:21]} 36. Qxa2
{[%clk 0:00:11.1]} 36... Qxf3 {[%clk 0:00:21.1]} 37. e7 {[%clk 0:00:11.3]} 37...
Qxe3+ {[%clk 0:00:20.6]} 38. Kb4 {[%clk 0:00:11.8]} 38... Qe4+ {[%clk
0:00:20.3]} 39. Ka5 {[%clk 0:00:12.2]} 39... Qxe5 {[%clk 0:00:20.3]} 40. Qf7
{[%clk 0:00:12.3]} 40... b6+ {[%clk 0:00:17.4]} 41. Ka6 {[%clk 0:00:10.2]} 41...
Rg8 {[%clk 0:00:08.7]} 42. c6 {[%clk 0:00:06.4]} 42... Qb8 {[%clk 0:00:07.6]}
43. Qf6+ {[%clk 0:00:05.3]} 43... Kh7 {[%clk 0:00:07.6]} 44. Qf7+ {[%clk
0:00:05.6]} 44... Kh8 {[%clk 0:00:07.6]} 45. Qf6+ {[%clk 0:00:05.9]} 45... Kh7
{[%clk 0:00:06.5]} 46. Qxf5+ {[%clk 0:00:05.3]} 46... Kh8 {[%clk 0:00:06.4]} 47.
Qf6+ {[%clk 0:00:05.4]} 47... Kh7 {[%clk 0:00:06.5]} 48. Qf5+ {[%clk 0:00:05.8]}
48... Rg6 {[%clk 0:00:06.1]} 49. Qf7+ {[%clk 0:00:05.4]} 49... Rg7 {[%clk
0:00:06.3]} 50. Qf5+ {[%clk 0:00:05.7]} 50... Kg8 {[%clk 0:00:04.7]} 51. Qe6+
{[%clk 0:00:06.1]} 51... Kh8 {[%clk 0:00:03.4]} 52. e8=Q+ {[%clk 0:00:06.2]}
52... Qxe8 {[%clk 0:00:03.6]} 53. Qxe8+ {[%clk 0:00:07.1]} 53... Rg8 {[%clk
0:00:04.3]} 54. Qxg8+ {[%clk 0:00:06.8]} 54... Kxg8 {[%clk 0:00:04.4]} 55. c7
{[%clk 0:00:07.7]} 55... h5 {[%clk 0:00:04.1]} 56. c8=Q+ {[%clk 0:00:08.6]}
56... Kg7 {[%clk 0:00:03.7]} 57. Qh3 {[%clk 0:00:09.5]} 57... Kg6 {[%clk
0:00:03.7]} 58. Kxa7 {[%clk 0:00:10.4]} 58... Kg5 {[%clk 0:00:04.2]} 59. Kxb6
{[%clk 0:00:11.3]} 59... h4 {[%clk 0:00:05]} 60. Kc6 {[%clk 0:00:12.2]} 60...
Kh5 {[%clk 0:00:05.4]} 61. b6 {[%clk 0:00:13.1]} 61... Kg5 {[%clk 0:00:06.3]}
62. b7 {[%clk 0:00:14]} 62... Kh5 {[%clk 0:00:06.7]} 63. b8=Q {[%clk 0:00:14.1]}
63... Kg5 {[%clk 0:00:07.6]} 64. Qbb3 {[%clk 0:00:14.5]} 64... Kh5 {[%clk
0:00:08.5]} 65. Qbf3+ {[%clk 0:00:14.5]} 65... Kg5 {[%clk 0:00:09.4]} 66. Qhg4+
{[%clk 0:00:14.5]} 66... Kh6 {[%clk 0:00:09.4]} 67. Qf6+ {[%clk 0:00:14.7]}
67... Kh7 {[%clk 0:00:09.7]} 68. Qfg7# {[%clk 0:00:15.3]} 1-0

[Event "*** SCC Grand Prix: Titled Tuesday Blitz"]
[Site "Chess.com"]
[Date "2020.07.07"]
[Round "5"]
[White "bazar-wokzal"]
[Black "MisiekZielony"]
[Result "0-1"]
[WhiteElo "2384"]
[BlackElo "2204"]
[TimeControl "180+1"]
[EndTime "10:56:45 PDT"]
[Termination "MisiekZielony won on time"]

1. e4 {[%clk 0:02:57.2]} 1... Nf6 {[%clk 0:02:59.8]} 2. Nc3 {[%clk 0:02:56.6]}
2... d5 {[%clk 0:02:58.8]} 3. e5 {[%clk 0:02:56.8]} 3... Ne4 {[%clk 0:02:58.9]}
4. Nce2 {[%clk 0:02:56]} 4... Nc5 {[%clk 0:02:58.6]} 5. d4 {[%clk 0:02:53.3]}
5... Ne6 {[%clk 0:02:58.5]} 6. f4 {[%clk 0:02:51.9]} 6... g6 {[%clk 0:02:58.4]}
7. Nf3 {[%clk 0:02:51.7]} 7... h5 {[%clk 0:02:58.2]} 8. Be3 {[%clk 0:02:45.9]}
8... Ng7 {[%clk 0:02:57.5]} 9. c3 {[%clk 0:02:42.5]} 9... c6 {[%clk 0:02:54.8]}
10. g3 {[%clk 0:02:39.7]} 10... Bg4 {[%clk 0:02:53.2]} 11. Bg2 {[%clk
0:02:39.4]} 11... Nf5 {[%clk 0:02:52]} 12. Bf2 {[%clk 0:02:39.3]} 12... h4
{[%clk 0:02:50.5]} 13. Nc1 {[%clk 0:01:54.9]} 13... e6 {[%clk 0:02:45.3]} 14.
Nd3 {[%clk 0:01:49.8]} 14... Nd7 {[%clk 0:02:37.5]} 15. Qe2 {[%clk 0:01:41.5]}
15... a5 {[%clk 0:02:25.6]} 16. O-O-O {[%clk 0:01:30.3]} 16... Qb6 {[%clk
0:02:14.8]} 17. Rhe1 {[%clk 0:01:27.9]} 17... c5 {[%clk 0:01:58.1]} 18. dxc5
{[%clk 0:01:20.6]} 18... Nxc5 {[%clk 0:01:57.7]} 19. Nxc5 {[%clk 0:01:19.9]}
19... Bxc5 {[%clk 0:01:57.6]} 20. Bxc5 {[%clk 0:00:58.7]} 20... Qxc5 {[%clk
0:01:57.8]} 21. Rg1 {[%clk 0:00:51.9]} 21... Qe3+ {[%clk 0:01:42.8]} 22. Rd2
{[%clk 0:00:43.7]} 22... Qxe2 {[%clk 0:01:39.5]} 23. Rxe2 {[%clk 0:00:43.3]}
23... hxg3 {[%clk 0:01:39.7]} 24. hxg3 {[%clk 0:00:42.3]} 24... Nxg3 {[%clk
0:01:39.7]} 25. Ree1 {[%clk 0:00:36.5]} 25... Bxf3 {[%clk 0:01:32.6]} 26. Bxf3
{[%clk 0:00:36.4]} 26... Nf5 {[%clk 0:01:33.2]} 27. Rh1 {[%clk 0:00:34.1]} 27...
Ke7 {[%clk 0:01:33]} 28. Reg1 {[%clk 0:00:25.9]} 28... Rac8 {[%clk 0:01:29.2]}
29. Kd2 {[%clk 0:00:25.5]} 29... Rxh1 {[%clk 0:01:19.5]} 30. Rxh1 {[%clk
0:00:25.5]} 30... Rc4 {[%clk 0:01:20]} 31. Rh8 {[%clk 0:00:19]} 31... Rxf4
{[%clk 0:01:19.4]} 32. Be2 {[%clk 0:00:18.8]} 32... Rf2 {[%clk 0:01:09.8]} 33.
Ke1 {[%clk 0:00:17.1]} 33... Rg2 {[%clk 0:01:07.3]} 34. Rb8 {[%clk 0:00:16.4]}
34... a4 {[%clk 0:00:58.2]} 35. Rxb7+ {[%clk 0:00:16.8]} 35... Kf8 {[%clk
0:00:58.3]} 36. Bd3 {[%clk 0:00:15.5]} 36... a3 {[%clk 0:00:37.3]} 37. bxa3
{[%clk 0:00:14]} 37... Rxa2 {[%clk 0:00:35.7]} 38. Ra7 {[%clk 0:00:13.7]} 38...
Ne3 {[%clk 0:00:31.6]} 39. a4 {[%clk 0:00:13]} 39... Ng4 {[%clk 0:00:31.4]} 40.
a5 {[%clk 0:00:11.6]} 40... Nxe5 {[%clk 0:00:31.8]} 41. Bb5 {[%clk 0:00:11.7]}
41... Nf3+ {[%clk 0:00:20.5]} 42. Kd1 {[%clk 0:00:09.2]} 42... d4 {[%clk
0:00:20.6]} 43. cxd4 {[%clk 0:00:04.7]} 43... Nxd4 {[%clk 0:00:20.2]} 44. Bd7
{[%clk 0:00:04.3]} 44... Ra1+ {[%clk 0:00:17.3]} 45. Kd2 {[%clk 0:00:03.1]}
45... Nb3+ {[%clk 0:00:17.7]} 46. Ke3 {[%clk 0:00:03.5]} 46... Rxa5 {[%clk
0:00:17.7]} 47. Rb7 {[%clk 0:00:03]} 47... Nc5 {[%clk 0:00:17]} 48. Rb8+ {[%clk
0:00:02.9]} 48... Ke7 {[%clk 0:00:17]} 49. Bc6 {[%clk 0:00:03.5]} 49... Ra7
{[%clk 0:00:15.1]} 50. Kd4 {[%clk 0:00:03]} 50... Nd7 {[%clk 0:00:15.3]} 51. Rh8
{[%clk 0:00:01.6]} 51... Nf6 {[%clk 0:00:15.7]} 52. Ke5 {[%clk 0:00:01.2]} 52...
Ra5+ {[%clk 0:00:16]} 53. Kf4 {[%clk 0:00:01.3]} 53... e5+ {[%clk 0:00:16.2]}
54. Kf3 {[%clk 0:00:01.6]} 54... Rc5 {[%clk 0:00:15.4]} 55. Ba4 {[%clk
0:00:01.2]} 55... Rc3+ {[%clk 0:00:15.4]} 56. Ke2 {[%clk 0:00:01.2]} 56... Nd5
{[%clk 0:00:15.5]} 57. Rc8 {[%clk 0:00:01.1]} 57... Rxc8 {[%clk 0:00:14.9]} 0-1